fUSD/lending_fUSD_20250616
["ID","MTS","AMOUNT","RATE_DAILY","PERIOD"]
[366178073,1750099834131,-490.0,0.0001572,2]
[366178074,1750099834141,-490.0,0.0001572,2]
[366178075,1750099834151,-491.88994209,0.0001572,2]
[366178076,1750099834161,-1082.25,0.0001572,2]
[366178077,1750099834172,-490.0,0.0001572,2]
[366178078,1750099834182,-490.0,0.0001572,2]
[366178079,1750099834193,-490.0,0.0001572,2]
[366178080,1750099834203,-184.37356217,0.0001572,2]
[366178081,1750099834213,-490.0,0.0001572,2]
[366178082,1750099834222,-835.67,0.0001572,2]
[366178083,1750099834232,-490.0,0.0001572,2]
[366178084,1750099834243,-490.0,0.0001572,2]
[366178085,1750099834254,-917.34,0.0001572,2]
[366178086,1750099834263,-490.0,0.0001572,2]
[366178087,1750099834274,-490.0,0.0001572,2]
[366178088,1750099834284,-490.0,0.0001572,2]
[366178089,1750099834295,-681.6,0.0001572,2]
[366178090,1750099834305,-729.07,0.0001572,2]
[366178091,1750099834315,-490.0,0.0001572,2]
[366178092,1750099834325,-777.86,0.0001572,2]
[366178093,1750099834334,-588.67,0.0001572,2]
[366178094,1750099834345,-1681.72,0.0001572,2]
[366178095,1750099834355,-490.0,0.0001572,2]
[366178096,1750099834364,-490.0,0.0001572,2]
[366178097,1750099834376,-1442.09,0.0001572,2]
[366178098,1750099834387,-490.0,0.0001572,2]
[366178099,1750099834397,-578.22,0.0001572,2]
[366178100,1750099834406,-531.36,0.0001572,2]
[366178101,1750099834416,-506.81,0.0001572,2]
[366178102,1750099834426,-490.0,0.0001572,2]
[366178103,1750099834436,-598.57,0.0001572,2]
[366178104,1750099834445,-490.0,0.0001572,2]
[366178105,1750099834455,-1280.87,0.0001572,2]
[366178106,1750099834465,-528.36,0.0001572,2]
[366178107,1750099834475,-451.22603339,0.0001572,2]
[366178108,1750099834485,-490.0,0.0001572,2]
[366178109,1750099834496,-490.0,0.0001572,2]
[366178110,1750099834506,-490.0,0.0001572,2]
[366178111,1750099834516,-490.0,0.0001572,2]
[366178112,1750099834527,-490.0,0.0001572,2]
[366178113,1750099834537,-490.0,0.0001572,2]
[366178114,1750099834547,-490.0,0.0001572,2]
[366178115,1750099834557,-1701.37,0.0001572,2]
[366178116,1750099834567,-490.0,0.0001572,2]
[366178117,1750099834577,-490.0,0.0001572,2]
[366178118,1750099834587,-752.82,0.0001572,2]
[366178119,1750099834597,-530.9,0.0001572,2]
[366178120,1750099834607,-490.0,0.0001572,2]
[366178121,1750099834617,-506.46,0.0001572,2]
[366178122,1750099834627,-490.0,0.0001572,2]
[366178123,1750099834638,-490.0,0.0001572,2]
[366178124,1750099834649,-490.0,0.0001572,2]
[366178125,1750099834659,-490.0,0.0001572,2]
[366178126,1750099834668,-2326.38,0.0001572,2]
[366178127,1750099834678,-563.12,0.0001572,2]
[366178128,1750099834687,-490.0,0.0001572,2]
[366178129,1750099834697,-490.0,0.0001572,2]
[366178130,1750099834707,-490.0,0.0001572,2]
[366178131,1750099834718,-1041.89,0.0001572,2]
[366178132,1750099834728,-673.46,0.0001572,2]
[366178133,1750099834738,-1113.58,0.0001572,2]
[366178134,1750099834747,-2761.34,0.0001572,2]
[366178135,1750099834758,-697.72,0.0001572,2]
[366178136,1750099834767,-490.0,0.0001572,2]
[366178137,1750099834777,-490.0,0.0001572,2]
[366178138,1750099834786,-515.29,0.0001572,2]
[366178139,1750099834796,-490.0,0.0001572,2]
[366178140,1750099834805,-490.0,0.0001572,2]
[366178141,1750099834815,-808.92,0.0001572,2]
[366178142,1750099834826,-490.0,0.0001572,2]
[366178143,1750099834836,-2952.18,0.0001572,2]
[366178144,1750099834846,-490.0,0.0001572,2]
[366178145,1750099834855,-490.0,0.0001572,2]
[366178146,1750099834866,-490.0,0.0001572,2]
[366178147,1750099834876,-490.0,0.0001572,2]
[366178148,1750099834888,-431.47073469,0.0001572,2]
[366178149,1750099834897,-490.0,0.0001572,2]
[366178150,1750099834906,-1256.05,0.0001572,2]
[366178151,1750099834916,-490.0,0.0001572,2]
[366178152,1750099834926,-490.0,0.0001572,2]
[366178153,1750099834936,-490.0,0.0001572,2]
[366178154,1750099834946,-490.0,0.0001572,2]
[366178155,1750099834956,-435.02759798,0.0001572,2]
[366178156,1750099834971,-490.0,0.0001572,2]
[366178157,1750099834981,-490.0,0.0001572,2]
[366178158,1750099834991,-490.0,0.0001572,2]
[366178159,1750099835001,-2099.78,0.0001572,2]
[366178160,1750099835011,-762.81,0.0001572,2]
[366178161,1750099835022,-3899.07,0.0001572,2]
[366178162,1750099835032,-490.0,0.0001572,2]
[366178163,1750099835044,-490.0,0.0001572,2]
[366178164,1750099835054,-490.0,0.0001572,2]
[366178165,1750099835064,-532.54,0.0001572,2]
[366178166,1750099835074,-1188.01,0.0001572,2]
[366178167,1750099835083,-9637.08,0.0001572,2]
[366178168,1750099835094,-490.0,0.0001572,2]
[366178169,1750099835104,-490.0,0.0001572,2]
[366178170,1750099835114,-1113.92,0.0001572,2]
[366178171,1750099835124,-490.0,0.0001572,2]
[366178172,1750099835134,-490.0,0.0001572,2]
[366178173,1750099835144,-490.0,0.0001572,2]
[366178174,1750099835154,-624.28,0.0001572,2]
[366178175,1750099835164,-490.0,0.0001572,2]
[366178176,1750099835174,-490.0,0.0001572,2]
[366178177,1750099835183,-490.0,0.0001572,2]
[366178178,1750099835289,-490.0,0.0001572,2]
[366178179,1750099835299,-490.0,0.0001572,2]
[366178180,1750099835309,-852.55,0.0001572,2]
[366178181,1750099835319,-1015.03,0.0001572,2]
[366178182,1750099835329,-967.36,0.0001572,2]
[366178183,1750099835338,-490.0,0.0001572,2]
[366178184,1750099835348,-490.0,0.0001572,2]
[366178185,1750099835358,-203.63945932,0.0001572,2]
[366178186,1750099835401,-286.36054068,0.0001572,2]
[366178187,1750099835412,-490.0,0.0001572,2]
[366178188,1750099835421,-2384.65,0.0001572,2]
[366178189,1750099835431,-94.67986804,0.0001572,2]
[366178190,1750099835448,-516.17013196,0.0001572,2]
[366178191,1750099835459,-147.05986804,0.0001572,2]
[366178192,1750099835481,-342.94013196,0.0001572,2]
[366178193,1750099835491,-310.52435979,0.0001572,2]
[366178195,1750099837508,-514.06266125,0.00015719,2]
[366178196,1750099837609,-228.24733875,0.00015719,2]
[366178197,1750099837619,-1056.96564021,0.0001572,2]
[366178198,1750099837628,-683.64,0.0001572,2]
[366178199,1750099837639,-543.94,0.0001572,2]
[366178200,1750099837649,-1494.72,0.0001572,2]
[366178201,1750099837659,-490.0,0.0001572,2]
[366178202,1750099837669,-490.0,0.0001572,2]
[366178203,1750099837678,-490.0,0.0001572,2]
[366178204,1750099837687,-490.0,0.0001572,2]
[366178205,1750099837697,-656.74,0.0001572,2]
[366178206,1750099837707,-2723.21,0.0001572,2]
[366178207,1750099837716,-492.2,0.0001572,2]
[366178208,1750099837725,-490.0,0.0001572,2]
[366178209,1750099837735,-490.0,0.0001572,2]
[366178210,1750099837744,-23.20038104,0.0001572,2]
[366178227,1750099838112,-264.52,0.0001572,2]
[366178271,1750099842731,-772.11961896,0.0001572,2]
[366178272,1750099842740,-227.88038104,0.0001572,2]
[366178273,1750099842752,-889.77323113,0.0001572,2]
[366178274,1750099842785,-1602.97638783,0.0001572,2]
[366178275,1750099842794,-490.0,0.0001572,2]
[366178276,1750099842804,-490.0,0.0001572,2]
[366178277,1750099842814,-490.0,0.0001572,2]
[366178278,1750099842823,-490.0,0.0001572,2]
[366178279,1750099842833,-2600.62,0.0001572,2]
[366178280,1750099842842,-490.0,0.0001572,2]
[366178281,1750099842852,-1154.94,0.0001572,2]
[366178282,1750099842862,-490.0,0.0001572,2]
[366178283,1750099842872,-494.53,0.0001572,2]
[366178284,1750099842881,-649.36,0.0001572,2]
[366178285,1750099842890,-2025.77,0.0001572,2]
[366178286,1750099842899,-490.0,0.0001572,2]
[366178287,1750099842909,-1903.78,0.0001572,2]
[366178288,1750099842918,-343.94,0.0001572,2]
[366178289,1750099842927,-490.0,0.0001572,2]
[366178290,1750099842936,-490.0,0.0001572,2]
[366178291,1750099842946,-498.45,0.0001572,2]
[366178292,1750099842955,-5074.62,0.0001572,2]
[366178293,1750099842965,-490.0,0.0001572,2]
[366178294,1750099842978,-1211.28,0.0001572,2]
[366178295,1750099842987,-659.15,0.0001572,2]
[366178296,1750099842997,-3261.09,0.0001572,2]
[366178297,1750099843007,-490.0,0.0001572,2]
[366178298,1750099843018,-490.0,0.0001572,2]
[366178299,1750099843027,-1333.84,0.0001572,2]
[366178310,1750099843192,-815.96,0.0001572,2]
[366178312,1750099843203,-490.0,0.0001572,2]
[366178314,1750099843212,-770.88,0.0001572,2]
[366178316,1750099843222,-490.0,0.0001572,2]
[366178318,1750099843231,-490.0,0.0001572,2]
[366178320,1750099843240,-490.0,0.0001572,2]
[366178322,1750099843250,-490.0,0.0001572,2]
[366178324,1750099843260,-490.0,0.0001572,2]
[366178326,1750099843270,-571.74,0.0001572,2]
[366178328,1750099843279,-1867.96,0.0001572,2]
[366178330,1750099843289,-490.0,0.0001572,2]
[366178332,1750099843299,-3012.31,0.0001572,2]
[366178334,1750099843308,-490.0,0.0001572,2]
[366178336,1750099843317,-490.0,0.0001572,2]
[366178337,1750099843326,-490.0,0.0001572,2]
[366178339,1750099843335,-490.0,0.0001572,2]
[366178341,1750099843345,-490.0,0.0001572,2]
[366178343,1750099843354,-601.292332,0.0001572,2]
[366178345,1750099843363,-490.0,0.0001572,2]
[366178347,1750099843373,-4216.71,0.0001572,2]
[366178349,1750099843383,-1849.72,0.0001572,2]
[366178351,1750099843392,-490.0,0.0001572,2]
[366178353,1750099843402,-490.0,0.0001572,2]
[366178355,1750099843411,-772.0,0.0001572,2]
[366178357,1750099843420,-490.0,0.0001572,2]
[366178359,1750099843430,-490.0,0.0001572,2]
[366178360,1750099843440,-490.0,0.0001572,2]
[366178362,1750099843449,-800.85,0.0001572,2]
[366178364,1750099843458,-490.0,0.0001572,2]
[366178367,1750099843470,-551.5,0.0001572,2]
[366178369,1750099843480,-1000.0,0.0001572,2]
[366178371,1750099843490,-564.14,0.0001572,2]
[366178373,1750099843500,-1046.06,0.0001572,2]
[366178375,1750099843510,-490.0,0.0001572,2]
[366178377,1750099843520,-618.41,0.0001572,2]
[366178379,1750099843530,-490.0,0.00015721,2]
[366178380,1750099843539,-490.0,0.00015721,2]
[366178383,1750099843550,-490.0,0.00015721,2]
[366178384,1750099843559,-490.0,0.00015721,2]
[366178385,1750099843568,-490.0,0.00015721,2]
[366178386,1750099843578,-490.0,0.00015721,2]
[366178387,1750099843587,-490.0,0.00015721,2]
[366178388,1750099843597,-490.0,0.00015721,2]
[366178389,1750099843607,-490.0,0.00015721,2]
[366178390,1750099843616,-404.78681044,0.00015721,2]
[366178391,1750099843626,-490.0,0.00015721,2]
[366178392,1750099843636,-490.0,0.00015721,2]
[366178393,1750099843647,-490.0,0.00015721,2]
[366178394,1750099843658,-490.0,0.00015721,2]
[366178395,1750099843668,-490.0,0.00015721,2]
[366178396,1750099843678,-490.0,0.00015721,2]
[366178397,1750099843688,-490.0,0.00015721,2]
[366178398,1750099843699,-490.0,0.00015721,2]
[366178399,1750099843709,-490.0,0.00015721,2]
[366178400,1750099843718,-490.0,0.00015721,2]
[366178402,1750099843727,-490.0,0.00015721,2]
[366178404,1750099843738,-490.0,0.00015721,2]
[366178406,1750099843747,-490.0,0.00015721,2]
[366178408,1750099843758,-490.0,0.00015721,2]
[366178409,1750099843767,-490.0,0.00015721,2]
[366178411,1750099843776,-437.23267604,0.00015721,2]
[366178413,1750099843786,-490.0,0.00015721,2]
[366178415,1750099843796,-490.0,0.00015721,2]
[366178417,1750099843806,-179.64098176,0.00015721,2]
[366178419,1750099843816,-490.0,0.00015721,2]
[366178421,1750099843825,-490.0,0.00015721,2]
[366178423,1750099843836,-490.0,0.00015721,2]
[366178425,1750099843845,-490.0,0.00015721,2]
[366178427,1750099843854,-490.0,0.00015721,2]
[366178429,1750099843864,-490.0,0.00015721,2]
[366178431,1750099843874,-490.0,0.00015721,2]
[366178433,1750099843883,-490.0,0.00015721,2]
[366178434,1750099843892,-490.0,0.00015721,2]
[366178436,1750099843902,-567.38,0.00015721,2]
[366178438,1750099843911,-490.0,0.00015721,2]
[366178440,1750099843921,-490.0,0.00015721,2]
[366178442,1750099843931,-490.0,0.00015721,2]
[366178444,1750099843941,-490.0,0.00015721,2]
[366178446,1750099843951,-490.0,0.00015721,2]
[366178448,1750099843960,-490.0,0.00015721,2]
[366178450,1750099843973,-982.16,0.00015721,2]
[366178452,1750099843982,-513.0,0.00015721,2]
[366178454,1750099843991,-490.0,0.00015721,2]
[366178456,1750099844001,-629.69,0.00015721,2]
[366178458,1750099844010,-490.0,0.00015721,2]
[366178460,1750099844021,-490.0,0.00015721,2]
[366178462,1750099844030,-490.0,0.00015721,2]
[366178464,1750099844039,-1124.95,0.00015721,2]
[366178465,1750099844049,-1078.66,0.00015721,2]
[366178467,1750099844059,-681.49,0.00015721,2]
[366178469,1750099844068,-796.17,0.00015721,2]
[366178471,1750099844078,-490.0,0.00015721,2]
[366178473,1750099844087,-490.0,0.00015721,2]
[366178475,1750099844097,-490.0,0.00015721,2]
[366178477,1750099844106,-800.3,0.00015721,2]
[366178479,1750099844115,-490.0,0.00015721,2]
[366178481,1750099844124,-490.0,0.00015721,2]
[366178483,1750099844134,-555.81,0.00015721,2]
[366178485,1750099844144,-718.03,0.00015721,2]
[366178487,1750099844154,-330.81677323,0.00015721,2]
[366178489,1750099844164,-490.0,0.00015721,2]
[366178491,1750099844174,-490.0,0.00015721,2]
[366178493,1750099844183,-829.91,0.00015721,2]
[366178495,1750099844193,-560.35,0.00015721,2]
[366178497,1750099844203,-490.0,0.00015721,2]
[366178500,1750099844219,-490.0,0.00015721,2]
[366178502,1750099844230,-490.0,0.00015721,2]
[366178504,1750099844240,-490.0,0.00015721,2]
[366178506,1750099844250,-909.62,0.00015721,2]
[366178508,1750099844261,-490.0,0.00015721,2]
[366178510,1750099844272,-490.0,0.00015721,2]
[366178512,1750099844282,-490.0,0.00015721,2]
[366178515,1750099844293,-490.0,0.00015721,2]
[366178517,1750099844303,-769.94,0.00015721,2]
[366178519,1750099844314,-891.45,0.00015721,2]
[366178521,1750099844325,-297.97862182,0.00015721,2]
[366178523,1750099844335,-490.0,0.00015721,2]
[366178525,1750099844346,-840.77,0.00015721,2]
[366178527,1750099844356,-490.0,0.00015721,2]
[366178529,1750099844367,-579.70695709,0.00015721,2]
[366178531,1750099844377,-490.0,0.00015721,2]
[366178533,1750099844387,-490.0,0.00015721,2]
[366178535,1750099844398,-795.95,0.00015721,2]
[366178537,1750099844408,-490.0,0.00015721,2]
[366178539,1750099844419,-490.0,0.00015721,2]
[366178541,1750099844429,-585.54,0.00015721,2]
[366178543,1750099844440,-263.4755966,0.00015721,2]
[366178546,1750099844451,-490.0,0.00015721,2]
[366178548,1750099844462,-490.0,0.00015721,2]
[366178550,1750099844473,-490.0,0.00015721,2]
[366178552,1750099844483,-490.0,0.00015721,2]
[366178554,1750099844494,-490.0,0.00015721,2]
[366178556,1750099844504,-596.23,0.00015721,2]
[366178558,1750099844515,-642.0,0.00015721,2]
[366178560,1750099844526,-669.84,0.00015721,2]
[366178562,1750099844536,-490.0,0.00015721,2]
[366178564,1750099844547,-497.32,0.00015721,2]
[366178566,1750099844559,-1338.48,0.00015721,2]
[366178568,1750099844570,-490.0,0.00015721,2]
[366178570,1750099844581,-490.0,0.00015721,2]
[366178573,1750099844592,-490.0,0.00015721,2]
[366178575,1750099844603,-490.0,0.00015721,2]
[366178577,1750099844614,-490.0,0.00015721,2]
[366178579,1750099844624,-600.69,0.00015721,2]
[366178581,1750099844634,-490.0,0.00015721,2]
[366178583,1750099844645,-490.0,0.00015721,2]
[366178585,1750099844661,-800.44,0.00015721,2]
[366178587,1750099844672,-490.0,0.00015721,2]
[366178589,1750099844683,-645.35,0.00015721,2]
[366178592,1750099844694,-490.0,0.00015721,2]
[366178594,1750099844705,-490.0,0.00015721,2]
[366178596,1750099844715,-686.64,0.00015721,2]
[366178598,1750099844726,-490.0,0.00015721,2]
[366178600,1750099844737,-490.0,0.00015721,2]
[366178602,1750099844748,-490.0,0.00015721,2]
[366178604,1750099844760,-551.17,0.00015721,2]
[366178606,1750099844770,-490.0,0.00015721,2]
[366178608,1750099844780,-504.15,0.00015721,2]
[366178610,1750099844791,-490.0,0.00015721,2]
[366178613,1750099844802,-455.11455797,0.00015721,2]
[366178615,1750099844813,-575.68,0.00015721,2]
[366178616,1750099844823,-490.0,0.00015721,2]
[366178618,1750099844833,-633.3,0.00015721,2]
[366178619,1750099844844,-490.0,0.00015721,2]
[366178621,1750099844859,-490.0,0.00015721,2]
[366178623,1750099844872,-490.0,0.00015721,2]
[366178625,1750099844883,-781.44,0.00015721,2]
[366178627,1750099844894,-490.0,0.00015721,2]
[366178630,1750099844907,-727.85,0.00015721,2]
[366178632,1750099844917,-490.0,0.00015721,2]
[366178634,1750099844928,-490.0,0.00015721,2]
[366178636,1750099844938,-732.15,0.00015721,2]
[366178638,1750099844949,-818.78,0.00015721,2]
[366178640,1750099844959,-490.0,0.00015721,2]
[366178642,1750099844974,-929.75,0.00015721,2]
[366178644,1750099844984,-490.0,0.00015721,2]
[366178646,1750099844995,-490.0,0.00015721,2]
[366178648,1750099845005,-490.0,0.00015721,2]
[366178650,1750099845018,-576.65,0.00015721,2]
[366178652,1750099845027,-490.0,0.00015721,2]
[366178654,1750099845037,-560.37,0.00015721,2]
[366178656,1750099845048,-572.86,0.00015721,2]
[366178657,1750099845060,-490.0,0.00015721,2]
[366178659,1750099845070,-490.0,0.00015721,2]
[366178661,1750099845081,-5094.47764719,0.00015762,2]
[366178662,1750099845091,-1553.43463894,0.00015784,2]
[366178664,1750099845102,-151.1026112,0.00015785,2]
[366178666,1750099845118,-168.0,0.00015811,2]
[366178668,1750099845128,-490.0,0.00015883,2]
[366178669,1750099845139,-2438.38,0.00015883,2]
[366178671,1750099845150,-589.89,0.00015884,2]
[366178673,1750099845161,-635.6,0.00015884,2]
[366178675,1750099845171,-7222.02,0.00015884,2]
[366178677,1750099845183,-881.06,0.00015884,2]
[366178679,1750099845194,-736.45,0.00015884,2]
[366178680,1750099845204,-490.0,0.00015884,2]
[366178682,1750099845214,-1158.78,0.00015884,2]
[366178684,1750099845224,-625.91,0.00015884,2]
[366178686,1750099845235,-490.0,0.00015884,2]
[366178687,1750099845245,-490.0,0.00015884,2]
[366178689,1750099845255,-6094.54,0.00015884,2]
[366178691,1750099845266,-490.0,0.00015884,2]
[366178693,1750099845276,-1214.88,0.00015884,2]
[366178694,1750099845286,-624.88,0.00015884,2]
[366178696,1750099845296,-662.19,0.00015884,2]
[366178698,1750099845306,-1050.22,0.00015884,2]
[366178700,1750099845316,-749.74,0.00015884,2]
[366178702,1750099845326,-937.77,0.00015884,2]
[366178703,1750099845337,-648.76,0.00015884,2]
[366178705,1750099845349,-1486.61,0.00015884,2]
[366178707,1750099845360,-490.0,0.00015884,2]
[366178709,1750099845370,-490.0,0.00015884,2]
[366178711,1750099845381,-742.31,0.00015884,2]
[366178713,1750099845392,-490.0,0.00015885,2]
[366178714,1750099845403,-468.24848934,0.00015885,2]
[366178715,1750099845414,-490.0,0.00015885,2]
[366178716,1750099845424,-490.0,0.00015885,2]
[366178717,1750099845434,-490.0,0.00015885,2]
[366178718,1750099845445,-490.0,0.00015885,2]
[366178719,1750099845455,-506.39,0.00015885,2]
[366178720,1750099845466,-490.0,0.00015885,2]
[366178721,1750099845477,-490.0,0.00015885,2]
[366178722,1750099845487,-168.78,0.00015885,2]
[366178723,1750099845498,-399.08,0.00015885,2]
[366178724,1750099845508,-555.39,0.00015885,2]
[366178725,1750099845518,-490.0,0.00015885,2]
[366178726,1750099845528,-490.0,0.00015885,2]
[366178727,1750099845538,-490.0,0.00015885,2]
[366178728,1750099845560,-490.0,0.00015885,2]
[366178729,1750099845574,-490.0,0.00015885,2]
[366178730,1750099845585,-490.0,0.00015885,2]
[366178731,1750099845595,-490.0,0.00015885,2]
[366178732,1750099845606,-490.0,0.00015885,2]
[366178733,1750099845617,-490.0,0.00015885,2]
[366178734,1750099845627,-514.15,0.00015885,2]
[366178735,1750099845638,-490.0,0.00015885,2]
[366178736,1750099845650,-561.2,0.00015885,2]
[366178737,1750099845660,-490.0,0.00015885,2]
[366178738,1750099845671,-490.0,0.00015885,2]
[366178739,1750099845682,-490.0,0.00015885,2]
[366178740,1750099845692,-490.0,0.00015885,2]
[366178741,1750099845703,-247.8,0.00015885,2]
[366178742,1750099845713,-490.0,0.00015885,2]
[366178743,1750099845724,-490.0,0.00015885,2]
[366178744,1750099845735,-490.0,0.00015885,2]
[366178745,1750099845745,-490.0,0.00015885,2]
[366178746,1750099845756,-490.0,0.00015885,2]
[366178747,1750099845767,-525.15,0.00015885,2]
[366178748,1750099845777,-490.0,0.00015885,2]
[366178749,1750099845787,-490.0,0.00015885,2]
[366178750,1750099845800,-490.0,0.00015885,2]
[366178751,1750099845811,-787.74,0.00015885,2]
[366178752,1750099845821,-490.0,0.00015885,2]
[366178753,1750099845831,-180.86,0.00015885,2]
[366178754,1750099845841,-490.0,0.00015885,2]
[366178755,1750099845851,-490.0,0.00015885,2]
[366178756,1750099845863,-490.0,0.00015885,2]
[366178757,1750099845874,-608.8,0.00015885,2]
[366178758,1750099845885,-520.48,0.00015885,2]
[366178759,1750099845897,-490.0,0.00015885,2]
[366178760,1750099845908,-490.0,0.00015885,2]
[366178761,1750099845918,-490.0,0.00015885,2]
[366178762,1750099845929,-206.56,0.00015885,2]
[366178763,1750099845940,-407.41505635,0.00015885,2]
[366178764,1750099845951,-490.0,0.00015885,2]
[366178765,1750099846446,-536.51,0.00015885,2]
[366178766,1750099846458,-490.0,0.00015885,2]
[366178767,1750099846468,-490.0,0.00015885,2]
[366178768,1750099846479,-504.13,0.00015885,2]
[366178769,1750099846489,-505.64,0.00015885,2]
[366178770,1750099846499,-490.0,0.00015885,2]
[366178771,1750099846509,-490.0,0.00015885,2]
[366178772,1750099846520,-490.0,0.00015885,2]
[366178773,1750099846530,-490.0,0.00015885,2]
[366178774,1750099846540,-490.0,0.00015885,2]
[366178775,1750099846550,-492.22,0.00015885,2]
[366178776,1750099846560,-490.0,0.00015885,2]
[366178777,1750099846571,-490.0,0.00015885,2]
[366178778,1750099846582,-852.32,0.00015885,2]
[366178779,1750099846593,-490.0,0.00015885,2]
[366178780,1750099846603,-218.64,0.00015885,2]
[366178781,1750099846614,-490.0,0.00015885,2]
[366178782,1750099846625,-490.0,0.00015885,2]
[366178783,1750099846635,-570.16,0.00015885,2]
[366178784,1750099846646,-490.0,0.00015885,2]
[366178785,1750099846657,-541.81,0.00015885,2]
[366178786,1750099846667,-971.93,0.00015885,2]
[366178787,1750099846678,-490.0,0.00015885,2]
[366178788,1750099846687,-535.85,0.00015885,2]
[366178789,1750099846698,-490.0,0.00015885,2]
[366178790,1750099846707,-490.0,0.00015885,2]
[366178791,1750099846717,-490.0,0.00015885,2]
[366178792,1750099846727,-490.0,0.00015885,2]
[366178793,1750099846742,-490.0,0.00015885,2]
[366178794,1750099846753,-490.0,0.00015885,2]
[366178795,1750099846763,-619.98,0.00015885,2]
[366178796,1750099846773,-346.40981411,0.00015885,2]
[366178797,1750099846783,-490.0,0.00015885,2]
[366178798,1750099846793,-490.0,0.00015885,2]
[366178799,1750099846805,-490.0,0.00015885,2]
[366178800,1750099846815,-490.0,0.00015885,2]
[366178801,1750099846825,-490.0,0.00015885,2]
[366178802,1750099846835,-490.0,0.00015885,2]
[366178803,1750099846846,-274.64,0.00015885,2]
[366178804,1750099846857,-490.0,0.00015885,2]
[366178805,1750099846868,-490.0,0.00015885,2]
[366178806,1750099846878,-490.0,0.00015885,2]
[366178807,1750099846889,-490.0,0.00015885,2]
[366178808,1750099846900,-440.29,0.00015885,2]
[366178809,1750099846910,-490.0,0.00015885,2]
[366178810,1750099846921,-490.0,0.00015885,2]
[366178811,1750099846931,-527.49,0.00015885,2]
[366178812,1750099846941,-490.0,0.00015885,2]
[366178813,1750099846952,-490.0,0.00015885,2]
[366178814,1750099846961,-1082.25,0.00015885,2]
[366178815,1750099846975,-490.0,0.00015885,2]
[366178816,1750099846986,-917.34,0.00015885,2]
[366178817,1750099846996,-490.0,0.00015885,2]
[366178818,1750099847006,-681.6,0.00015885,2]
[366178819,1750099847017,-729.07,0.00015885,2]
[366178820,1750099847028,-777.86,0.00015885,2]
[366178821,1750099847039,-1681.72,0.00015885,2]
[366178822,1750099847050,-490.0,0.00015885,2]
[366178823,1750099847060,-1442.09,0.00015885,2]
[366178824,1750099847070,-490.0,0.00015885,2]
[366178825,1750099847080,-578.22,0.00015885,2]
[366178826,1750099847091,-531.36,0.00015885,2]
[366178827,1750099847101,-490.0,0.00015885,2]
[366178828,1750099847112,-598.57,0.00015885,2]
[366178829,1750099847122,-274.77,0.00015885,2]
[366178830,1750099847133,-1280.87,0.00015885,2]
[366178831,1750099847143,-528.36,0.00015885,2]
[366178832,1750099847154,-490.0,0.00015885,2]